Cogmind - Beta 10.2 @@@ ROGUE MODE // 2022.02.13 @ 15:05:10 Player: Jezoensis Result: Self-destructed Performance ------------- Evolutions (2) 1000 Regions Visited (7) 1400 Robots Destroyed (96) 480 Value Destroyed (2545) 2545 Prototype IDs (7) 140 Alien Tech Used (0) 0 Bonus (35) 35 TOTAL SCORE: 5600 Bonus ------- High Alert Combat Kills 35 Cogmind --------- Core Integrity 426/550 Matter 190/300 Energy 265/265 System Corruption 0% Temperature Cool (0) Movement Treading (160) Location -8/Materials Parts ------- > --- POWER (1) -------- Improved Ion Engine > --- PROPULSION (3) --- Light Treads Light Treads Light Treads > --- UTILITY (5) ------ Large Storage Unit Large Storage Unit Improved Terrain Scanner Terrain Scan Processor Transmission Jammer > --- WEAPON (2) ------- Improved Assault Rifle Improved Assault Rifle > --- INVENTORY (16) --- Light Treads Light Treads Aerolev Unit Aerolev Unit High-capacity Storage Unit High-capacity Matter Pod (200) Advanced Sensor Array Advanced Sensor Array Experimental Sensor Array Improved Utility Shielding Long-range Tractor Beam Enhanced Autogun Gauss Rifle Shock Bomb Launcher Improved Grenade Launcher Katana Peak State ------------ > --- POWER ------------ Heavy Ion Engine > --- PROPULSION ------- Light Treads Light Treads Aerolev Unit > --- UTILITY ---------- Large Storage Unit Large Storage Unit Terrain Scan Processor Improved Utility Shielding Hacking Suite > --- WEAPON ----------- Improved Assault Rifle Improved Assault Rifle > --- INVENTORY -------- Improved Ion Engine Light Treads Light Treads High-capacity Storage Unit High-capacity Matter Pod Experimental Sensor Array Improved Terrain Scanner Improved Utility Shielding Long-range Tractor Beam Enhanced Autogun Gauss Rifle Flak Cannon Shock Bomb Launcher Improved Grenade Launcher Katana [Rating: 29] Favorites ----------- Power Heavy Ion Engine Engine Heavy Ion Engine Propulsion Light Treads Treads Light Treads Hover Unit Aerolev Unit Utility Large Storage Unit Device Improved Terrain Scanner Storage Large Storage Unit Processor Terrain Scan Processor Hackware Hacking Suite Protection Light Armor Plating Weapon Advanced Beam Cannon Energy Gun Medium Laser Energy Cannon Advanced Beam Cannon Ballistic Gun Improved Assault Rifle Launcher Grenade Launcher Special Weapon Mining Laser Slashing Weapon Katana Build | -11 -10 -10 -9 -9 -9 -8 -8 ------- Run | Scr Mat Min Mat Min Exi Min Mat Slots Evolved 4 | . . . 2 . . . 2 Power . | . . . . . . . . Propulsion 1 | . . . 1 . . . . Utility 3 | . . . 1 . . . 2 Weapon . | . . . . . . . . Parts Attached 123 | 7 14 5 29 2 1 14 51 Power 4 | 1 1 . 1 . . . 1 Engine 4 | 1 1 . 1 . . . 1 Core . | . . . . . . . . Reactor . | . . . . . . . . Propulsion 20 | 2 . . 5 . . 3 10 Treads 19 | 2 . . 5 . . 3 9 Leg . | . . . . . . . . Wheel . | . . . . . . . . Hover 1 | . . . . . . . 1 Flight . | . . . . . . . . Utility 61 | 2 2 2 13 2 1 7 32 Device 43 | 1 . 1 8 2 . 7 24 Storage 5 | 1 2 . 1 . 1 . . Processor 2 | . . . . . . . 2 Hackware 2 | . . . 1 . . . 1 Protection 9 | . . 1 3 . . . 5 Artifact . | . . . . . . . . Weapon 38 | 2 11 3 10 . . 4 8 Energy Gun 13 | 2 6 2 2 . . 1 . Energy Cannon 6 | . . . 5 . . . 1 Ballistic Gun 10 | . . . 2 . . 3 5 Ballistic Cannon . | . . . . . . . . Launcher 6 | . 3 1 1 . . . 1 Special Weapon 2 | . 2 . . . . . . Impact Weapon . | . . . . . . . . Slashing Weapon 1 | . . . . . . . 1 Piercing Weapon . | . . . . . . . . Special Melee Weapon . | . . . . . . . . Unidentified Prototypes 6 | . . . 4 1 . . 1 Parts Lost 12 | . 1 . 1 . . 5 5 Power . | . . . . . . . . Propulsion 5 | . . . . . . 3 2 Utility 1 | . . . . . . . 1 Weapon 6 | . 1 . 1 . . 2 2 Highest Loss Streak 4 | . 1 . 1 . . 4 3 Average Slot Usage (%) 99 | . 99 100 99 100 100 99 99 Engine 11 | . 14 14 11 11 11 11 9 Treads 30 | . 28 28 33 33 33 33 26 Device 12 | . 14 13 7 11 11 11 14 Storage 18 | . 14 14 20 22 22 22 18 Processor 2 | . . . . . . . 9 Hackware 1 | . . . 2 . . . 2 Energy Gun 9 | . 26 27 7 . . 8 1 Energy Cannon 6 | . . . 9 22 22 2 3 Ballistic Gun 6 | . . . 5 . . 11 12 Naked Turns . | . . . . . . . . Heaviest Build 52 | 12 26 29 49 49 49 49 52 Greatest Support 60 | 40 40 40 60 60 60 60 60 Greatest Overweight (x) . | . . . . . . . . Average Overweight (x) . | . . . . . . . . Largest Inventory Capacity 16 | 6 10 10 16 16 16 16 16 Average Capacity 13 | 5 6 10 15 16 16 16 16 Most Carried 16 | 4 10 10 16 16 16 16 16 Average Carried 12 | 2 5 9 12 15 15 13 15 Final Capacity 16 | 6 10 10 16 16 16 16 16 Final Carried 16 | 2 10 10 16 16 16 16 16 Class Distribution -------------------- 50% | Scavenger-Mutant 38% | Mutant 10% | Scavenger-Skirmisher Dominant Class ---------------- Mutant | -10/Materials Mutant | -10/Mines Mutant | -9/Materials Scavenger-Mutant | -9/Mines Scavenger-Mutant | -9/Exiles Scavenger-Mutant | -8/Mines Scavenger-Mutant | -8/Materials Resources | -11 -10 -10 -9 -9 -9 -8 -8 ----------- Run | Scr Mat Min Mat Min Exi Min Mat Matter Collected 1911 | 270 150 117 300 24 . 339 711 Remotely 122 | . . . . . . . 122 Salvage Created 3576 | 172 361 40 1190 35 . 531 1247 Parts 231 | 6 25 6 72 7 . 33 82 Haulers Intercepted 8 | . 1 . 4 . . . 3 Recyclers Shooed 4 | . 1 1 . . . 2 . Parts Field Recycled . | . . . . . . . . Retrieved Matter . | . . . . . . . . Parts Self-Destructed . | . . . . . . . . Prevented . | . . . . . . . . Kills | -11 -10 -10 -9 -9 -9 -8 -8 ------- Run | Scr Mat Min Mat Min Exi Min Mat Combat Hostiles Destroyed 64 | . 7 3 22 . . 7 25 Guns 29 | . 3 . 7 . . 3 16 Cannons 20 | . . . 13 . . 4 3 AOE 14 | . 4 3 2 . . . 5 Classes Destroyed 12 | 2 3 1 2 1 . 2 1 Worker 1 | . . . . . . . 1 Builder 2 | . . . . 1 . . 1 Tunneler 13 | 4 1 1 . 1 . 6 . Hauler 8 | . 1 . 4 . . . 3 Recycler 2 | 1 . . . . . 1 . Watcher 6 | . 1 . 2 . . . 3 Swarmer 15 | . . 3 2 . . . 10 Grunt 34 | . 7 . 13 . . 4 10 Brawler 2 | . . . 2 . . . . Duelist 1 | . . . . . . 1 . Sentry 10 | . . . 5 . . . 5 Hunter 2 | . . . . . . 2 . Best Kill Streak 8 | 3 5 3 5 1 . 4 8 Combat Bots Only 6 | . 4 3 4 . . 3 6 Max Kills in Single Turn 3 | 1 2 1 2 1 . 1 3 Gunslinging 1 | . . . 1 . . . . Exploded 2 | . 2 1 1 . . . 2 Melee . | . . . . . . . . Uniques/NPCs Destroyed . | . . . . . . . . Combat | -11 -10 -10 -9 -9 -9 -8 -8 -------- Run | Scr Mat Min Mat Min Exi Min Mat Damage Taken 2708 | . 249 63 567 . . 804 1025 Core 288 | . 33 9 12 . . 110 124 Absorbed by Shields . | . . . . . . . . Core Remaining (%) 84 | 100 . 83 . . . 69 . Volleys Fired 216 | 12 34 5 46 5 . 44 70 Largest 2 | 2 2 2 2 2 . 2 2 Hottest 136 | 100 100 90 136 136 . 136 91 Shots Fired 413 | 24 59 6 91 10 . 88 135 Gun 285 | 24 50 2 44 . . 60 105 Cannon 109 | . . . 44 10 . 28 27 Launcher 15 | . 5 4 3 . . . 3 Special 4 | . 4 . . . . . . Kinetic 165 | . . . 18 . . 51 96 Thermal 163 | 24 44 1 56 10 . 28 . Explosive 9 | . 5 4 . . . . . Electromagnetic 76 | . 10 1 17 . . 9 39 Robot Hit Streak 16 | 7 7 6 13 2 . 13 16 Robot Miss Streak 3 | 1 3 . 2 2 . 2 3 Penetration Max 1 | . . . . . . . 1 Secondary Targets 7 | . 1 . 4 . . . 2 Max Gunslinging Chain 1 | . 1 . 1 . . . 1 Shots Hit Robots 289 | 18 37 2 65 5 . 61 101 Core Hits 141 | 6 18 5 33 2 . 26 51 Critical Hits 14 | . . . 9 2 . 3 . Critical Kills 5 | . . . 3 1 . 1 . Critical Parts Destroyed 9 | . . . 6 1 . 2 . Melee Attacks 4 | . . . . . . . 4 Impact . | . . . . . . . . Slashing 4 | . . . . . . . 4 Piercing . | . . . . . . . . Sneak Attacks . | . . . . . . . . Combat Hostiles . | . . . . . . . . Follow-up Attacks . | . . . . . . . . Damage Inflicted 6235 | 238 739 263 1332 81 . 1084 2498 Guns 3492 | 238 424 28 577 . . 682 1543 Cannons 1561 | . . . 618 81 . 390 472 Explosions 1141 | . 314 228 137 . . . 462 Melee . | . . . . . . . . Ramming 41 | . 1 7 . . . 12 21 Kinetic 2171 | . . . 235 . . 557 1379 Thermal 2095 | 238 341 13 799 81 . 390 233 Explosive 577 | . 314 228 . . . . 35 Electromagnetic 1351 | . 83 15 298 . . 125 830 Impact . | . . . . . . . . Slashing . | . . . . . . . . Piercing . | . . . . . . . . Highest Corruption . | . . . . . . . . Average Corruption . | . . . . . . . . Corruption Purged . | . . . . . . . . Overload Shots . | . . . . . . . . Overflow Damage 91 | . 1 . 3 . . . 87 Projectiles 23 | . . . . . . . 23 Explosions 68 | . 1 . 3 . . . 64 Melee . | . . . . . . . . Knockbacks . | . . . . . . . . Impact . | . . . . . . . . Kinetic . | . . . . . . . . Secondary . | . . . . . . . . Self-Inflicted Damage 174 | . 14 21 . . . . 139 Shots 4 | . 1 1 . . . . 2 Rammed 6 | . 1 2 . . . 2 1 Targets Rammed 6 | . 1 2 . . . 2 1 Kicked . | . . . . . . . . Crushed . | . . . . . . . . Highest Temperature 258 | 144 258 30 241 171 . 225 90 Average Temperature 58 | 54 69 18 57 79 . 64 28 Received Heat Transfer 879 | . 132 . 225 . . 207 315 Siege Activations . | . . . . . . . . Robots Corrupted 1 | . . . . . . . 1 Combat Hostiles 1 | . . . . . . . 1 Parts Fried 3 | . . . . . . . 3 Impact Corruptions . | . . . . . . . . Robots Melted . | . . . . . . . . Combat Hostiles . | . . . . . . . . Parts Melted 3 | 2 . . 1 . . . . Heat Transferred 4357 | 703 999 37 1517 148 . 703 250 Parts Sabotaged . | . . . . . . . . Parts Stolen . | . . . . . . . . Parts Stripped . | . . . . . . . . Power Chain Reactions 4 | . . . . . . . 4 Missiles Intercepted . | . . . . . . . . Alert | -11 -10 -10 -9 -9 -9 -8 -8 ------- Run | Scr Mat Min Mat Min Exi Min Mat Peak Influence 513 | 25 108 117 351 115 . 190 513 Initial 105 | . 16 42 45 105 . . 3 Average 132 | 12 73 74 187 110 . 85 193 Maximum Alert Level 2 | . . . 1 . . . 2 Low Security (%) 78 | 100 100 100 53 100 . 100 57 Level 1 19 | . . . 46 . . . 37 Level 2 1 | . . . . . . . 5 Level 3 . | . . . . . . . . Level 4 . | . . . . . . . . Level 5 . | . . . . . . . . High Security . | . . . . . . . . Max Security . | . . . . . . . . Squads Dispatched 4 | . . . 1 . . . 3 Investigation . | . . . . . . . . Extermination . | . . . . . . . . Reinforcement 4 | . . . 1 . . . 3 Assault . | . . . . . . . . Garrison . | . . . . . . . . Intercept . | . . . . . . . . Construction Impeded 2 | . . . . . . . 2 Haulers Reinforced . | . . . . . . . . Stealth | -11 -10 -10 -9 -9 -9 -8 -8 --------- Run | Scr Mat Min Mat Min Exi Min Mat Distress Signals 7 | . 2 1 1 . . . 3 Communications Jammed 11 | . . . . . . . 11 Distress Signals 11 | . . . . . . . 11 Times Spotted 99 | . 13 2 28 . . 9 47 Peak Tracking Total 6 | . 4 3 4 . . 4 6 Tactical Retreats 7 | . . . . . . 2 5 Traps | -11 -10 -10 -9 -9 -9 -8 -8 ------- Run | Scr Mat Min Mat Min Exi Min Mat Traps Triggered 5 | . . . 1 . . . 4 Indirectly . | . . . . . . . . Trap Hack Attempts . | . . . . . . . . Triggered . | . . . . . . . . Disarmed . | . . . . . . . . Reprogrammed . | . . . . . . . . Reused . | . . . . . . . . Traps Extracted . | . . . . . . . . Installed . | . . . . . . . . Triggered . | . . . . . . . . Machines | -11 -10 -10 -9 -9 -9 -8 -8 ---------- Run | Scr Mat Min Mat Min Exi Min Mat Machines Disabled 7 | . . . 3 . . 1 3 Max in Single Turn 2 | . . . 1 . . 1 2 Machines Sabotaged . | . . . . . . . . Garrisons Compromised . | . . . . . . . . Overloaded Fab Kills . | . . . . . . . . Fab Network Shutdowns . | . . . . . . . . Hacking | -11 -10 -10 -9 -9 -9 -8 -8 --------- Run | Scr Mat Min Mat Min Exi Min Mat Machines Accessed 24 | . 7 . 9 . . . 8 Terminals 22 | . 7 . 9 . . . 6 Fabricators . | . . . . . . . . Repair Stations . | . . . . . . . . Recycling Units 1 | . . . . . . . 1 Scanalyzers 1 | . . . . . . . 1 Garrison Access . | . . . . . . . . Total Hacks 90 | . 27 . 32 . . . 31 Successful 52 | . 14 . 19 . . . 19 Failed 36 | . 13 . 12 . . . 11 Catastrophic 2 | . . . 2 . . . . Database Lockouts 2 | . . . 1 . . . 1 Manual 64 | . 22 . 21 . . . 21 Terminals 86 | . 27 . 32 . . . 27 Fabricators . | . . . . . . . . Repair Stations . | . . . . . . . . Recycling Units 1 | . . . . . . . 1 Scanalyzers 3 | . . . . . . . 3 Garrison Access . | . . . . . . . . Terminal Hacks 26 | . 6 . 11 . . . 9 Part Schematic 2 | . 2 . . . . . . Robot Analysis 8 | . 3 . 2 . . . 3 Prototype ID Bank 1 | . . . 1 . . . . Branch Access Points 2 | . . . 1 . . . 1 Terminal Index 3 | . 1 . 1 . . . 1 Garrison Index 1 | . . . . . . . 1 Unreport Threat 4 | . . . 2 . . . 2 Locate Traps 3 | . . . 2 . . . 1 Zone Layout 2 | . . . 2 . . . . Fabricator Hacks . | . . . . . . . . Repair Station Hacks . | . . . . . . . . Recycling Unit Hacks . | . . . . . . . . Scanalyzer 2 | . . . . . . . 2 Insert Component 1 | . . . . . . . 1 Analyze 1 | . . . . . . . 1 Garrison Access Hacks . | . . . . . . . . Unauthorized Hacks 24 | . 8 . 8 . . . 8 Terminals 23 | . 8 . 8 . . . 7 Track 12 | . 3 . 5 . . . 4 Assimilate 1 | . 1 . . . . . . Botnet 7 | . 3 . 2 . . . 2 Operators 3 | . 1 . 1 . . . 1 Fabricators . | . . . . . . . . Repair Stations . | . . . . . . . . Recycling Units 1 | . . . . . . . 1 Recyclers 1 | . . . . . . . 1 Scanalyzers . | . . . . . . . . Garrison Access . | . . . . . . . . Data Cores Recovered . | . . . . . . . . Used . | . . . . . . . . Hacking Detections 22 | . 7 . 9 . . . 6 Full Trace Events . | . . . . . . . . Feedback Events . | . . . . . . . . Feedback Blocked . | . . . . . . . . Robot Schematics Acquired . | . . . . . . . . Robots Built . | . . . . . . . . Matter . | . . . . . . . . Time . | . . . . . . . . Total Robot Build Rating . | . . . . . . . . Part Schematics Acquired 3 | . 2 . . . . . 1 Parts Built . | . . . . . . . . Matter . | . . . . . . . . Time . | . . . . . . . . Total Part Build Rating . | . . . . . . . . Parts Repaired . | . . . . . . . . Time . | . . . . . . . . Parts Recycled . | . . . . . . . . Recycled Matter . | . . . . . . . . Retrieved Matter . | . . . . . . . . Retrieved Components . | . . . . . . . . Parts Scanalyzed 1 | . . . . . . . 1 Part Schematics Acquired 1 | . . . . . . . 1 Parts Damaged 1 | . . . . . . . 1 Bothacking | -11 -10 -10 -9 -9 -9 -8 -8 ------------ Run | Scr Mat Min Mat Min Exi Min Mat Used RIF Installer . | . . . . . . . . Robots Hacked . | . . . . . . . . Non-combat . | . . . . . . . . Combat . | . . . . . . . . Robot Hacks Applied . | . . . . . . . . Relay Couplers Released . | . . . . . . . . Robots Rewired . | . . . . . . . . Allies Hacked . | . . . . . . . . Hacks Repelled . | . . . . . . . . Allies | -11 -10 -10 -9 -9 -9 -8 -8 -------- Run | Scr Mat Min Mat Min Exi Min Mat Total Allies 1 | . 1 . . . . . . Largest Group 1 | . 1 1 1 . . . . Highest-Rated Group 10 | . 10 10 10 . . . . Highest-Rated Ally 10 | . 10 10 10 . . . . Total Orders 2 | . 2 . . . . . . STAY 1 | . 1 . . . . . . FOLLOW 1 | . 1 . . . . . . Ally Attacks . | . . . . . . . . Total Damage . | . . . . . . . . Kills . | . . . . . . . . Allies Corrupted . | . . . . . . . . Allies Melted . | . . . . . . . . Intel | -11 -10 -10 -9 -9 -9 -8 -8 ------- Run | Scr Mat Min Mat Min Exi Min Mat Robot Analysis Total 8 | . 3 . 2 . . . 3 Derelict Logs Recovered 2 | . . . . 2 . . . Drone Launches . | . . . . . . . . Drone Recoveries . | . . . . . . . . Exploration | -11 -10 -10 -9 -9 -9 -8 -8 ------------- Run | Scr Mat Min Mat Min Exi Min Mat Turns Passed 4388 | 138 718 276 707 252 358 700 1239 Spaces Moved 2172 | 67 366 159 313 145 223 336 563 Core 16 | 16 . . . . . . . Treads 2156 | 51 366 159 313 145 223 336 563 Legs . | . . . . . . . . Wheels . | . . . . . . . . Hover . | . . . . . . . . Flight . | . . . . . . . . Fastest Speed 50 | 50 160 160 160 160 160 160 160 Average Speed 159 | 133 160 160 160 160 160 160 160 Slowest Speed 160 | 160 160 160 160 160 160 160 160 Overloaded Moves . | . . . . . . . . Propulsion Burnouts . | . . . . . . . . Robots Hopped . | . . . . . . . . Cave-ins Triggered . | . . . . . . . . Exploration Rate (%) 50 | 4 71 38 44 34 60 88 61 Regions Visited 7 Branch Regions 4 Pre-discovered Areas 1 | . . . . 1 . . . Known Exits Taken 1 | . . . 1 . . . . Unknown Exits Taken 6 | 1 1 1 . 1 1 1 . Scrap Searched 2 | . . . . . . 2 . Spaces Dug 19 | . 8 7 . . . . 4 Terrain Destroyed 102 | . 38 28 . . . 1 35 Melee 4 | . . . . . . . 4 Projectile 5 | . 4 . . . . 1 . AOE 93 | . 34 28 . . . . 31 Terrain Rammed . | . . . . . . . . Walls Destroyed . | . . . . . . . . Machines Disabled . | . . . . . . . . Actions | -11 -10 -10 -9 -9 -9 -8 -8 --------- Run | Scr Mat Min Mat Min Exi Min Mat Total 2657 | 89 429 172 425 156 226 407 753 Wait 33 | . 2 . 3 . . 1 27 Move 2165 | 66 365 158 312 144 222 335 563 Hop . | . . . . . . . . Pick Up 59 | 4 8 1 18 1 1 6 20 Fast Attach 14 | 5 1 . 2 2 . 1 3 Attach 21 | 2 2 . 4 . . 5 8 Detach 8 | . 2 . 3 1 . 1 1 Swap 88 | . 11 5 23 . 1 8 40 Drop 43 | . 3 1 14 3 2 4 16 Fire 216 | 12 34 5 46 5 . 44 70 Melee 4 | . . . . . . . 4 Ram . | . . . . . . . . Kick . | . . . . . . . . Crush 6 | . 1 2 . . . 2 1 Escape Stasis . | . . . . . . . . Rewire . | . . . . . . . . Trap . | . . . . . . . . Miscellaneous . | . . . . . . . . Route ------- -11/Scrapyard -10/Materials (discovered 3 exits: *Mat x2 / [*Min]) -10/Mines -9/Materials (discovered 2 exits: *Min x2) -9/Mines -9/Exiles (discovered 2 exits: [*Min x2]) -8/Mines -8/Materials (discovered 1 exit: *Fac) History --------- Turn | Location | Event 12 | -11/Scrapyard | Discovered new exit (range 15) 139 | -11/Scrapyard | Entered Materials 278 | -10/Materials | Discovered new exit (range 7) 314 | -10/Materials | Build established: Mutant 687 | -10/Materials | Discovered new exit (range 12) 825 | -10/Materials | Discovered new exit (range 9) 857 | -10/Materials | Entered Mines 857 | -10/Mines | Accompanied by 1 ally 878 | -10/Mines | Met a Derelict bent on vengeance 973 | -10/Mines | Assembled infested the area 1121 | -10/Mines | Discovered new exit (range 9) 1133 | -10/Mines | Entered Materials 1133 | -9/Materials | Accompanied by 1 ally 1133 | -9/Materials | Evolved 2 slots: Propulsion x1, Utility x1 1467 | -9/Materials | Central database locked down 1527 | -9/Materials | Identified exit to Mines 1840 | -9/Materials | Entered Mines 1852 | -9/Mines | Learned location of Zion (-7) 1853 | -9/Mines | Learned Materials emergency access door positions 1944 | -9/Mines | Found a damaged Exp. Sensor Array with a note attached 1948 | -9/Mines | Found Prototype Device 1948 | -9/Mines | Identified Exp. Sensor Array 2011 | -9/Mines | Build established: Scavenger-Mutant 2036 | -9/Mines | Deemed a non-threat by the Exiles lab entrance 2036 | -9/Mines | Discovered new exit (range 5) 2092 | -9/Mines | Entered Exiles 2092 | -9/Exiles | Found Exiles lab abandoned 2118 | -9/Exiles | Discovered new exit (range 15) 2437 | -9/Exiles | Discovered new exit (range 10) 2450 | -9/Exiles | Entered Mines 2586 | -8/Mines | Lost 4 parts (2n2w) 3114 | -8/Mines | Discovered new exit (range 9) 3150 | -8/Mines | Entered Materials 3150 | -8/Materials | Evolved 2 slots: Utility x2 3596 | -8/Materials | Build established: Scavenger-Skirmisher 3759 | -8/Materials | Discovered new exit (range 15) 3822 | -8/Materials | Lost 3 parts (1n1u1w) 3887 | -8/Materials | Central database locked down 3932 | -8/Materials | Build established: Scavenger-Mutant 4212 | -8/Materials | Identified exit to Factory 4389 | -8/Materials | Self-destructed Last Messages --------------- 04204_ G-47 Trooper destroyed. 04212_ EXIT=IDENTIFIED: FACTORY 04213_ Discarded Imp. Signal Interpreter. 04218_ Acquired Imp. Heat Sink. 04228_ Acquired 12 matter. 04278_ G-47 Trooper destroyed. 04287_ Slammed into K-01 Serf. 04288_ Acquired 41 matter. 04296_ A-02 Transporter destroyed. 04301_ Dropped Lgt. Treads. 04307_ Dropped Imp. Heat Sink. 04309_ Acquired Aerolev Unit. 04320_ Triggered Alarm Trap. 04320_ Transmission Jammer jams signal. 04334_ Y-45 Defender destroyed. 04348_ Acquired 58 matter. 04370_ Y-45 Defender destroyed. 04389_ Connecting with Terminal... >>Access(Branch) No branch access points found. Map ----- +----------------------------------------------------+ | #???#??## ## ##### # # | | #??????## """ ## ##### # """"" # | | ??#??#?##! """ # #### # """"" # | | ?#???##?# """ # / # """""* # | | ????????# + [ + !##+# | | ????##??# "" "" # * = # """""* #? ? | | ??#??#### ""S"" # ###### """"" ##?? | | ??????#?# """" ##! ####### """"" #??# | | ##????### ##===# # ## # | | ???##???###########%=!+ ###########+? | | ?#???####### ] #= =# ]] ##?????? ??? | | ?#??##?###?# #= !#! !] ######?? ?? | | #####?#??### """ # # ! #?#??#? ??? | | # [!! ??### """ # ##########?? ? ???? | | # [! ##?## """ + ######?#?###??#?#?? | | # !! !????## # ## ?? ? ###?????? | | # ############ ##? ?""? ???????#? | | # # ##### #? ?""? #?#? ??? | | # #[ # ??""???#??????? | | # "%! +? ? ????#????? | | # #!! # ??"?"???#??????? | | # ! # ##### #????""??????????? | | # ############ ##?? ??????#??????? | | # !???#?# """ # #?? ?????????????? | | # ??#?#?# "T" + #?#???##??#?#?????? | | # ?#?#?# @ # # ? ??????????????? | | ### ????#??# # # ????????????? | | ??##???????# # #??? ??? ?????????? | | ?####??#???# # #?????? ??????????? | | ?????#?##??######## +??????? ?????????? | | ??#?#####?#??#????# #?? ? ????????????? | | #????????#?????#??# #????? ???????????? | | ?#?????#???????? ?? #??? ?????????????? | | ??????###??#??"""?? ##???#????????????? | | ??????#????#????"?? #????#????????????? | | ???????????? ?"???# #??"??????????????? | | ??????????????????? #???"?????????????? | | ??????????????????? #?????????????????? | | ??????????????????? ??????????????????? | | ????????????????????????????????????????? | | ????????????????? ??????????????????????? | | ????????????????????????????????????????? | | ????????????????????????????????????????? | | ????????????????????????????????????????? | | ????????????????????????????????????????? | | ????????????????????????????????????????? | | ?????????????+??????????????????????????? | | ????????????????????????????????????????? | | ????????????????????????????????????????? | | ????????????????????????????????????????? | +----------------------------------------------------+ Best States ------------- Heat Dissipation 45 Energy Generation 14 Energy Capacity 280 Matter Stores 300 Matter Capacity 300 Sight Range 16 Robot Scan Range 30 Terrain Scan Range 16 Terrain Scan Density 85 Jamming Range 8 Armor Coverage 150 Utility Shielding 66 Evasion (%) 40 Recoil Reduction 3 Offensive Hacking 10 Item Schematics ----------------- Lrg. Storage Unit | -10/Materials | Hacked Med. Storage Unit | -10/Materials | Hacked Exp. Sensor Array | -8/Materials | Scanalyzed Robot Schematics ------------------ None Fabricated ------------ Nothing Alien Tech Used ----------------- None Achievements -------------- None Challenges ------------ None Game ------ Seed HypercooledImpactStorm Manual? 0 Play Time 00:55:08 Cumulative 521.7 hours Start 2022.02.13 @ 12:26:07 End 2022.02.13 @ 15:05:10 Sessions 3 Manual Loads 0 Difficulty Rogue Special Mode None Game No. 252 Rogue 125 Adventurer 125 Explorer 2 Win Type - Total 45 Types 38/3/2/0/1/0/0/0/1 Lore% 69 Gallery% 86 Achievement% 67 Wizard Run 0 Options --------- ASCII 0 Keyboard 1 Movement Numpad Keybinds 0 Fullscreen 1 Font 36/TerminusFine Map View 76x50 Tactical HUD 1 Map Filters NONE Filters NONE Steam 1 RUN: 45618f92-c1ff-4eea-a0d5-0e9071ee04fc